bitfinex/quotes_ETHUSD_20251128
["timestamp","ask_amount","ask_price","bid_price","bid_amount"]
[1764359550695,0.92976524,3052.2,3052.1,0.001]
[1764359550895,4.20609051,3052.2,3052.1,0.001]
[1764359551123,5.05451352,3052.2,3052.1,0.001]
[1764359551520,5.26151352,3052.2,3052.1,0.001]
[1764359554824,5.56791342,3052.2,3052.1,0.001]
[1764359559610,10.59614636,3052.2,3052.1,0.001]
[1764359560638,10.60016247,3052.2,3052.1,0.001]
[1764359561477,5.56791342,3052.2,3052.1,0.001]
[1764359561609,5.45451342,3052.2,3052.1,0.001]
[1764359562325,5.55451342,3052.2,3052.1,0.001]
[1764359566540,5.34751342,3052.2,3052.1,0.001]
[1764359566841,5.55451342,3052.2,3052.1,0.001]
[1764359567613,22.81963542,3052.2,3052.1,0.001]
[1764359567807,22.81929998,3052.2,3052.1,0.001]
[1764359569437,10.35813998,3052.2,3052.1,0.001]
[1764359569622,10.56513998,3052.2,3052.1,0.001]
[1764359570944,15.59738903,3052.2,3052.1,0.001]
[1764359572723,10.56513998,3052.2,3052.1,0.001]
[1764359574321,10.56553175,3052.2,3052.1,0.001]
[1764359574721,8.94846175,3052.2,3052.1,0.001]
[1764359580545,8.94892322,3052.2,3052.1,0.001]
[1764359584058,8.33962322,3052.2,3052.1,0.4959]
[1764359584262,0.61398294,3052.2,3052.1,1.1496]
[1764359584557,0.61398294,3052.2,3052.1,0.4959]
[1764359584738,3.89030821,3052.2,3052.1,0.4959]
[1764359585459,0.61398294,3052.2,3052.1,0.9895]
[1764359585857,0.61398294,3052.2,3052.1,0.4959]
[1764359586060,0.61398294,3052.2,3052.1,1.1702]
[1764359587862,0.61398294,3052.2,3052.1,1.614979]
[1764359588341,0.61398294,3052.2,3052.1,4.89141162]
[1764359590448,0.61398294,3052.2,3052.1,9.92366067]
[1764359593067,0.61398294,3052.2,3052.1,1.614979]
[1764359593244,0.61398294,3052.2,3052.1,1.1702]
[1764359593945,0.61398294,3052.2,3052.1,4.44663262]
[1764359594566,0.61398294,3052.2,3052.1,1.1702]
[1764359594867,0.61398294,3052.2,3052.1,4.44663262]
[1764359595640,0.61398294,3052.2,3052.1,0.6766]
[1764359595948,0.61398294,3052.2,3052.1,1.1455]
[1764359596750,0.61398294,3052.2,3052.1,4.42193262]
[1764359597072,0.61398294,3052.2,3052.1,5.19189055]
[1764359598276,0.61398294,3052.2,3052.1,1.91545793]
[1764359598770,0.61398294,3052.2,3052.1,0.6774]
[1764359598971,0.61398294,3052.2,3052.1,4.42273262]
[1764359600951,0.61398294,3052.2,3052.1,4.45549694]
[1764359602052,0.61398294,3052.2,3052.1,4.42273262]
[1764359603181,0.61398294,3052.2,3052.1,4.45549694]
[1764359603679,0.61398294,3052.2,3052.1,1.94030329]
[1764359603852,0.61323366,3052.2,3052.1,1.28990329]
[1764359604275,0.61323366,3052.2,3052.1,1.75880329]
[1764359605065,0.61323366,3052.2,3052.1,5.21673591]
[1764359606281,0.61323366,3052.2,3052.1,1.94030329]
[1764359608555,0.61323366,3052.2,3052.1,1.1463]
[1764359609279,0.76553366,3052.2,3052.1,0.001]
[1764359609486,0.61323366,3052.2,3052.1,0.9527]
[1764359609655,0.61323366,3052.2,3052.1,4.22913262]
[1764359609860,0.61323366,3052.2,3052.1,4.44339694]
[1764359610088,0.61323366,3052.2,3052.1,2.34576814]
[1764359610290,0.61323366,3052.2,3052.1,2.31300382]
[1764359614500,0.61323366,3052.2,3052.1,0.4838]
[1764359620291,0.61323366,3052.2,3052.1,4.43763262]
[1764359620480,0.61323366,3052.2,3052.1,5.19599105]
[1764359620673,0.61323366,3052.2,3052.1,5.16322673]
[1764359621074,0.61323366,3052.2,3052.1,5.77646039]
[1764359621296,0.61323366,3052.2,3052.1,6.7025598]
[1764359624108,0.61388635,3052.2,3052.1,10.5625598]
[1764359626604,0.61388635,3052.2,3052.1,10.0730598]
[1764359626782,0.61388635,3052.2,3052.1,0.4838]
[1764359626980,0.87468635,3052.2,3052.1,0.208]
[1764359627178,0.87468635,3052.2,3052.1,0.001]
[1764359629411,0.61388635,3052.2,3052.1,3.27743262]
[1764359629578,0.61388635,3052.2,3052.1,3.77193262]
[1764359630013,0.61388635,3052.2,3052.1,0.4955]
[1764359631919,0.61388635,3052.2,3052.1,3.77193262]
[1764359633296,1.35888635,3052.2,3052.1,0.001]
[1764359633493,1.92259326,3052.2,3052.1,0.001]
[1764359633693,5.19891853,3052.2,3052.1,0.001]
[1764359634620,1.82259326,3052.2,3052.1,0.001]
[1764359634820,5.09891853,3052.2,3052.1,0.001]
[1764359635003,5.19891853,3052.2,3052.1,0.001]
[1764359635391,5.09891853,3052.2,3052.1,0.001]
[1764359635588,5.19891853,3052.2,3052.1,0.001]
[1764359635810,1.92259326,3052.2,3052.1,0.001]
[1764359636017,1.82259326,3052.2,3052.1,0.001]
[1764359636642,1.34059326,3052.2,3052.1,0.001]
[1764359636800,0.61388635,3052.2,3052.1,0.001]
[1764359637201,0.87895023,3052.2,3052.1,0.001]
[1764359639131,0.61375023,3052.2,3052.1,0.4955]
[1764359639325,0.61375023,3052.2,3052.1,0.985]
[1764359639545,0.61375023,3052.2,3052.1,0.4955]
[1764359639836,0.87455023,3052.2,3052.1,0.001]
[1764359640000,1.35885023,3052.2,3052.1,0.001]
[1764359640198,1.35885023,3052.2,3052.1,6.73890548]
[1764359640199,0.61375023,3052.2,3052.1,6.73890548]
[1764359640522,0.30673257,3052.2,3052.1,9.83863089]
[1764359640830,0.002,3052.4,3052.3,0.1]
[1764359641006,0.002,3052.4,3052.3,1.93259811]
[1764359641206,0.002,3052.4,3052.3,5.69831604]
[1764359641406,0.002,3052.4,3052.3,7.29093255]
[1764359641812,0.002,3052.4,3052.3,12.31866971]
[1764359642635,0.002,3052.4,3052.3,12.41866971]
[1764359643202,0.002,3052.4,3052.3,12.21166971]
[1764359643513,0.002,3052.4,3052.3,12.41866971]
[1764359644107,0.002,3052.4,3052.3,6.77842855]
[1764359644307,0.002,3052.4,3052.3,6.98542855]
[1764359646916,0.002,3052.7,3052.3,10.74542855]
[1764359647119,0.002,3053.1,3052.7,0.405504]
[1764359647330,0.002,3053.1,3053.0,5.99924116]
[1764359647639,0.002,3053.1,3053.0,9.40590943]
[1764359647805,0.002,3053.1,3053.0,9.88460943]
[1764359648623,0.002,3053.1,3053.0,10.09160943]
[1764359648828,0.002,3053.1,3053.0,11.4283275]
[1764359650924,0.002,3053.1,3053.0,12.15392161]
[1764359652116,0.002,3053.1,3053.0,11.84692161]
[1764359652324,0.002,3053.1,3053.0,12.15392161]
[1764359656759,0.002,3053.1,3053.0,16.01392161]
[1764359666352,0.002,3053.1,3053.0,15.80692161]
[1764359666540,0.002,3053.1,3053.0,16.01392161]
[1764359677078,0.30917117,3053.1,3053.0,16.01392161]
[1764359680584,0.30917117,3053.1,3053.0,16.00971309]
[1764359682277,0.30917117,3053.1,3053.0,15.80271309]
[1764359682447,0.30917117,3053.1,3053.0,16.00971309]
[1764359687053,1.21617117,3053.1,3053.0,0.13120152]
[1764359687256,6.23969981,3053.1,3052.8,0.001]
[1764359687575,0.6492,3052.9,3052.8,0.001]
[1764359687773,1.4253371,3052.9,3052.8,0.001]
[1764359688088,1.8784371,3052.9,3052.8,0.001]
[1764359690282,1.9784371,3052.9,3052.8,0.001]
[1764359690695,1.8784371,3052.9,3052.8,0.001]
[1764359691078,0.78007117,3052.9,3052.8,0.001]
[1764359691281,0.78007117,3052.9,3052.8,3.27668134]
[1764359691282,1.23047117,3052.9,3052.8,3.27668134]
[1764359691481,1.41227117,3052.9,3052.8,3.27668134]
[1764359692792,1.41227117,3052.9,3052.8,3.30943815]
[1764359695287,1.41227117,3052.9,3052.8,3.27668134]
[1764359697488,1.41227117,3052.9,3052.8,0.03375681]
[1764359698465,1.41227117,3052.9,3052.8,0.001]
[1764359698665,1.41227117,3052.9,3052.8,0.03375681]
[1764359698879,1.41227117,3052.9,3052.8,0.001]
[1764359700102,1.41088751,3052.9,3052.8,0.001]
[1764359701303,1.22638751,3052.9,3052.8,0.03375681]
[1764359701468,1.41078751,3052.9,3052.8,0.03375681]
[1764359701901,1.41078751,3052.9,3052.8,3.30943815]
[1764359702694,0.30578751,3052.9,3052.8,3.79083815]
[1764359703009,0.76058751,3052.9,3052.8,3.30943815]
[1764359703213,0.30578751,3052.9,3052.8,15.3402871]
[1764359703508,0.002,3053.0,3052.9,0.82559411]
[1764359703682,0.002,3053.0,3052.9,1.77659411]
[1764359703884,0.002,3053.0,3052.9,1.30699411]
[1764359704078,0.002,3053.0,3052.9,5.05216815]
[1764359704406,0.002,3053.0,3052.9,7.32411572]
[1764359704715,0.9078,3053.0,3052.9,4.20816815]
[1764359704918,1.21360074,3053.0,3052.9,3.48257404]
[1764359705076,1.21360074,3053.0,3052.9,3.51532978]
[1764359705978,1.21360074,3053.0,3052.9,3.48257404]
[1764359707328,1.21360074,3053.0,3052.9,3.51532978]
[1764359708203,1.21360074,3053.0,3052.9,3.30832978]
[1764359708402,1.21360074,3053.0,3052.9,3.48257404]
[1764359709616,1.21360074,3053.0,3052.9,0.23975574]
[1764359710685,0.75770074,3053.0,3052.9,0.207]
[1764359711822,0.75770074,3053.0,3052.9,3.48257404]
[1764359712319,1.21360074,3053.0,3052.9,3.48257404]
[1764359712618,1.21360074,3053.0,3052.9,0.207]
[1764359712811,1.21360074,3053.0,3052.9,3.48257404]
[1764359713210,1.21360074,3053.0,3052.8,0.001]
[1764359713444,1.40330074,3052.9,3052.8,0.001]
[1764359713607,1.87157546,3052.9,3052.8,0.001]
[1764359713811,1.40330074,3052.9,3052.8,0.001]
[1764359714242,4.67887478,3052.9,3052.8,0.001]
[1764359714444,4.77887478,3052.9,3052.8,0.001]
[1764359714833,22.61723078,3052.9,3052.8,0.001]
[1764359715032,20.18688378,3052.9,3052.8,0.001]
[1764359715230,22.52250243,3052.9,3052.8,0.001]
[1764359715431,20.13551443,3052.9,3052.8,0.001]
[1764359715751,19.67944843,3052.9,3052.8,0.001]
[1764359716126,19.83988543,3052.9,3052.8,0.001]
[1764359716943,18.85735643,3052.9,3052.8,0.001]
[1764359717449,18.85805897,3052.9,3052.8,0.001]
[1764359718046,18.52702197,3052.9,3052.8,0.001]
[1764359718234,16.55202197,3052.9,3052.8,0.001]
[1764359718556,16.65202197,3052.9,3052.8,0.001]
[1764359718849,7.83556597,3052.9,3052.8,0.001]
[1764359719017,14.93803632,3052.9,3052.8,0.001]
[1764359719218,14.84050532,3052.9,3052.8,0.001]
[1764359719614,13.67459132,3052.9,3052.8,0.001]
[1764359719840,1.61100328,3052.9,3052.8,0.001]
[1764359720214,0.94490328,3052.9,3052.8,0.001]
[1764359720546,1.40390328,3052.9,3052.8,0.001]
[1764359721929,1.87223278,3052.9,3052.8,0.001]
[1764359723840,1.40390328,3052.9,3052.8,0.001]
[1764359738151,0.75700328,3052.9,3052.8,0.001]
[1764359739453,1.22090328,3052.9,3052.8,0.001]
[1764359739696,0.75700328,3052.9,3052.8,0.001]
[1764359739972,0.30650328,3052.9,3052.8,0.4629]
[1764359740263,0.30650328,3052.9,3052.8,4.21048134]
[1764359741364,0.30650328,3052.9,3052.8,5.16611468]
[1764359741568,0.30650328,3052.9,3052.8,4.23231468]
[1764359741737,0.30650328,3052.9,3052.8,3.94558134]
[1764359742671,0.30650328,3052.9,3052.8,4.41748134]
[1764359744682,0.30650328,3052.9,3052.8,3.94558134]
[1764359747471,0.30650328,3052.9,3052.8,3.97833815]
[1764359751047,0.30650328,3052.9,3052.8,5.6088406]
[1764359751773,0.30650328,3052.9,3052.8,5.57608379]
[1764359751966,0.30650328,3052.9,3052.8,5.6088406]
[1764359754877,0.30650328,3052.9,3052.8,10.19443471]
[1764359755052,0.30650328,3052.9,3052.8,10.2616779]
[1764359755453,0.30650328,3052.9,3052.8,10.6671819]
[1764359755682,0.002,3053.0,3052.9,0.505504]
[1764359755889,0.002,3053.0,3052.9,3.16116896]
[1764359756054,0.002,3053.0,3052.9,3.1939247]
[1764359756249,0.002,3053.0,3052.9,12.0811532]
[1764359756558,0.002,3053.0,3052.9,15.3239715]
[1764359756747,0.002,3053.0,3052.9,16.04956561]
[1764359756954,0.002,3053.0,3052.9,12.18956561]
[1764359760263,0.002,3053.0,3052.9,7.06233711]
[1764359760469,0.002,3053.0,3052.9,7.36933711]
[1764359761789,0.002,3053.0,3052.9,6.28493311]
[1764359762085,0.4575,3053.0,3052.9,5.72303311]
[1764359762286,0.30816791,3053.0,3052.9,4.20816815]
[1764359762491,0.30816791,3053.0,3052.9,4.67006815]
[1764359763293,0.30816791,3053.0,3052.9,5.17472389]
[1764359763994,0.002,3053.0,3052.9,5.27472389]
[1764359764992,0.002,3053.0,3052.9,5.68022789]
[1764359765191,0.002,3053.0,3052.9,7.07864166]
[1764359765495,0.002,3053.0,3052.9,7.04588592]
[1764359769799,0.002,3053.0,3052.9,7.04688592]
[1764359777063,0.002,3053.0,3052.9,5.50058192]
[1764359777064,0.4353,3053.0,3052.9,5.50058192]
[1764359777279,1.23033182,3053.0,3052.9,4.20916815]
[1764359779699,0.74173182,3053.0,3052.9,4.20916815]
[1764359779875,1.23033182,3053.0,3052.9,4.20916815]
[1764359781081,0.74173182,3053.0,3052.9,4.20916815]
[1764359782599,0.30843182,3053.0,3052.9,4.20916815]
[1764359782807,0.30843182,3053.0,3052.9,4.69346815]
[1764359783012,0.78913182,3053.0,3052.9,4.24192389]
[1764359783208,1.23083182,3053.0,3052.9,4.20916815]
[1764359783983,0.30843182,3053.0,3052.9,4.69346815]
[1764359784182,0.30843182,3053.0,3052.9,4.72622389]
[1764359784490,0.78913182,3053.0,3052.9,4.20916815]
[1764359784730,1.23083182,3053.0,3052.9,4.20916815]
[1764359785407,1.23083182,3053.0,3052.9,4.24192389]
[1764359785816,0.78913182,3053.0,3052.9,4.20916815]
[1764359786809,0.78913182,3053.0,3052.9,4.24192389]
[1764359787180,0.30843182,3053.0,3052.9,4.72622389]
[1764359787812,1.23033182,3053.0,3052.9,4.20916815]
[1764359788182,1.23033182,3053.0,3052.9,4.24192389]
[1764359789214,0.74173182,3053.0,3052.9,4.24192389]
[1764359789684,1.23033182,3053.0,3052.9,4.20916815]
[1764359790502,1.23033182,3053.0,3052.9,8.06916815]
[1764359791511,1.23033182,3053.0,3052.9,7.86216815]
[1764359791689,1.23033182,3053.0,3052.9,8.06916815]
[1764359794414,1.23033182,3053.0,3052.9,7.86216815]
[1764359794604,1.23033182,3053.0,3052.9,8.06916815]
[1764359795724,1.23033182,3053.0,3052.9,4.20916815]
[1764359798627,1.23033182,3053.0,3052.9,4.24192389]
[1764359802618,1.23033182,3053.0,3052.9,4.20916815]
[1764359803496,1.23033182,3053.0,3052.9,4.00216815]
[1764359803838,1.23033182,3053.0,3052.9,4.20916815]
[1764359804051,1.23033182,3053.0,3052.9,3.48357404]
[1764359804197,1.23033182,3053.0,3052.9,0.208]
[1764359804541,1.23033182,3053.0,3052.9,3.48357404]
[1764359806931,1.23033182,3053.0,3052.9,3.27657404]
[1764359814217,1.23043182,3053.0,3052.9,3.27657404]
[1764359814417,1.23043182,3053.0,3052.9,3.48357404]
[1764359817358,1.23043182,3053.0,3052.9,3.27657404]
[1764359817535,1.23043182,3053.0,3052.9,3.48357404]
[1764359818754,1.23043182,3053.0,3052.9,3.27657404]
[1764359824135,6.25808139,3053.0,3052.9,0.001]
[1764359824334,6.88408953,3053.0,3052.9,0.001]
[1764359827043,6.88469736,3053.0,3052.9,0.001]
[1764359827263,1.85704779,3053.0,3052.9,0.001]
[1764359830741,1.85684779,3053.0,3052.9,0.001]
[1764359842679,2.84132423,3053.0,3052.9,0.001]
[1764359844077,1.36564779,3053.0,3052.9,0.001]
[1764359844276,0.30903965,3053.0,3052.9,0.001]
[1764359844482,0.30903965,3053.0,3052.9,0.9487]
[1764359844684,0.77953965,3053.0,3052.9,0.001]
[1764359845682,0.30903965,3053.0,3052.9,0.001]
[1764359846485,0.30903965,3053.0,3052.9,0.4822]
[1764359848255,1.23133965,3053.0,3052.9,0.001]
[1764359848456,0.77933965,3053.0,3052.9,0.001]
[1764359848984,1.63700083,3053.0,3052.9,0.001]
[1764359850383,4.91246758,3053.0,3052.9,0.001]
[1764359850588,42.05586457,3053.0,3052.9,0.001]
[1764359850799,42.48654519,3053.0,3052.9,0.001]
[1764359850959,35.2614283,3052.9,3052.8,0.001]
[1764359851155,39.33127936,3052.9,3052.8,0.001]
[1764359851455,39.59578936,3052.9,3052.8,0.001]
[1764359851655,38.55223336,3052.9,3052.8,0.001]
[1764359851892,38.33937836,3052.9,3052.8,0.001]
[1764359852086,37.33079836,3052.9,3052.8,0.001]
[1764359852305,37.46209635,3052.9,3052.8,0.001]
[1764359852759,44.40220239,3052.9,3052.8,0.001]
[1764359854079,43.64627239,3052.9,3052.8,0.001]
[1764359854765,44.07152177,3052.9,3052.8,0.001]
[1764359855093,21.5758752,3052.9,3052.8,0.001]
[1764359855787,36.5774432,3052.9,3052.8,0.001]
[1764359855991,41.93577339,3052.9,3052.8,0.001]
[1764359856691,44.40220239,3052.9,3052.8,0.001]
[1764359856877,26.12854782,3052.9,3052.8,0.001]
[1764359857081,25.7978672,3052.9,3052.8,0.001]
[1764359857792,34.5005362,3052.9,3052.8,0.001]
[1764359858662,9.0438722,3052.9,3052.8,0.001]
[1764359858861,35.3310612,3052.9,3052.8,0.001]
[1764359859823,36.0899142,3052.9,3052.8,0.001]
[1764359860672,9.0438722,3052.9,3052.8,0.001]
[1764359860878,36.0801782,3052.9,3052.8,0.001]
[1764359861071,30.9750242,3052.9,3052.8,0.001]
[1764359861396,27.7141902,3052.9,3052.8,0.001]
[1764359861799,32.7565012,3052.9,3052.8,0.001]
[1764359862395,40.29145139,3052.9,3052.8,0.001]
[1764359862595,40.39145139,3052.9,3052.8,0.001]
[1764359862800,47.85520239,3052.9,3052.8,0.001]
[1764359864408,17.85520239,3052.9,3052.8,0.001]
[1764359864578,47.85520239,3052.9,3052.8,0.001]
[1764359866690,47.85940338,3052.9,3052.8,0.001]
[1764359868493,44.40640338,3052.9,3052.8,0.001]
[1764359868817,31.14255576,3052.9,3052.8,0.001]
[1764359869108,36.08305276,3052.9,3052.8,0.001]
[1764359869608,29.68690876,3052.9,3052.8,0.001]
[1764359870192,35.87474176,3052.9,3052.8,0.001]
[1764359870398,31.91881976,3052.9,3052.8,0.001]
[1764359870698,28.71323276,3052.9,3052.8,0.001]
[1764359871408,27.11250576,3052.9,3052.8,0.001]
[1764359871613,21.77505976,3052.9,3052.8,0.001]
[1764359872184,36.85289076,3052.9,3052.8,0.001]
[1764359872584,27.57774976,3052.9,3052.8,0.001]
[1764359872984,28.01604976,3052.9,3052.8,0.001]
[1764359873184,31.00784076,3052.9,3052.8,0.001]
[1764359874211,31.24639576,3052.9,3052.8,0.001]
[1764359874594,30.03240776,3052.9,3052.8,0.001]
[1764359875310,30.34012876,3052.9,3052.8,0.001]
[1764359876287,13.94951876,3052.9,3052.8,0.001]
[1764359876482,27.79511576,3052.9,3052.8,0.001]
[1764359877510,13.94951876,3052.9,3052.8,0.001]
[1764359877709,28.13659076,3052.9,3052.8,0.001]
[1764359878422,27.64500076,3052.9,3052.8,0.001]
[1764359878723,28.56720276,3052.9,3052.8,0.001]
[1764359879311,28.21812776,3052.9,3052.8,0.001]
[1764359880308,7.68798268,3052.9,3052.8,0.9871]
[1764359880506,3.58461369,3052.9,3052.8,0.9871]
[1764359881218,7.18789369,3052.9,3052.8,0.9871]
[1764359881397,19.97431869,3052.9,3052.8,0.001]
[1764359881594,8.86078669,3052.9,3052.8,0.001]
[1764359881793,10.60869709,3052.9,3052.8,0.001]
[1764359882112,10.52139709,3052.9,3052.8,0.001]
[1764359882345,11.02119709,3052.9,3052.8,0.001]
[1764359882508,17.07302909,3052.9,3052.8,0.001]
[1764359882703,14.17299709,3052.9,3052.8,0.001]
[1764359882903,7.96338209,3052.9,3052.8,0.4883]
[1764359883110,8.00342909,3052.9,3052.8,0.4883]
[1764359883291,7.96848309,3052.9,3052.8,0.4883]
[1764359883498,9.40055609,3052.9,3052.8,0.4883]
[1764359883691,9.83885609,3052.9,3052.8,0.001]
[1764359884317,5.93232409,3052.9,3052.8,0.001]
[1764359884521,5.43252409,3052.9,3052.8,0.9871]
[1764359884824,3.68461369,3052.9,3052.8,0.9871]
[1764359886528,0.30903965,3052.9,3052.8,0.9871]
[1764359887002,3.58461369,3052.9,3052.8,0.9871]
[1764359888422,0.30903965,3052.9,3052.8,0.9871]
[1764359888624,0.30903965,3052.9,3052.8,0.9502]
[1764359888921,0.30903965,3052.9,3052.8,5.63285077]
[1764359892498,0.30903965,3052.9,3052.8,2.35716943]
[1764359892702,0.30903965,3052.9,3052.8,5.63285077]
[1764359897534,0.30903965,3052.9,3052.8,5.83985077]
[1764359898324,0.30793155,3052.9,3052.8,5.83985077]
[1764359899827,0.30793155,3052.9,3052.8,2.56416943]
[1764359900533,0.30793155,3052.9,3052.8,5.83985077]
[1764359901627,0.30793155,3052.9,3052.8,5.87260758]
[1764359901835,0.30793155,3052.9,3052.8,4.8882442]
[1764359917753,0.30901338,3052.9,3052.8,4.8882442]
[1764359918134,0.30901338,3052.9,3052.8,8.7482442]
[1764359918332,0.30901338,3052.9,3052.8,8.71548739]
[1764359919353,0.30901338,3052.9,3052.8,8.25358739]
[1764359919557,0.002,3054.5,3054.0,0.405504]
[1764359919758,0.002,3054.5,3054.1,9.34281938]
[1764359920053,0.002,3054.5,3054.1,2.89777605]
[1764359920255,0.002,3054.5,3054.1,2.30166164]
[1764359922162,0.002,3054.5,3054.1,5.36894866]
[1764359922366,0.002,3054.5,3054.1,5.57594866]
[1764359927466,0.002,3054.5,3054.1,11.01330322]
[1764359928679,0.002,3054.5,3054.1,11.00177196]
[1764359928870,0.002,3054.5,3054.1,12.42938856]
[1764359930169,0.002,3054.5,3054.1,16.28938856]
[1764359949313,0.30907333,3054.2,3054.1,16.28938856]
[1764359949623,0.76917333,3054.2,3054.1,10.13116926]
[1764359949798,1.23357333,3054.2,3054.1,7.13428702]
[1764359950118,1.23357333,3054.2,3054.1,8.06688113]
[1764359952019,0.30907333,3054.2,3054.1,8.06688113]
[1764359952513,0.76917333,3054.2,3054.1,8.06688113]
[1764359953802,0.76917333,3054.2,3054.1,4.20688113]
[1764359954020,1.23357333,3054.2,3054.1,4.239624]
[1764359959418,1.23357333,3054.2,3054.1,4.20688113]
[1764359960003,1.23357333,3054.2,3054.1,4.239624]
[1764359961524,1.23357333,3054.2,3054.1,4.20688113]
[1764359964619,1.23357333,3054.2,3054.1,4.239624]
[1764359965629,1.23357333,3054.2,3054.1,4.20688113]
[1764359967303,1.23315226,3054.2,3054.1,4.20688113]
[1764359968432,1.23315226,3054.2,3054.1,4.239624]
[1764359970637,1.23675226,3054.2,3054.1,3.27428702]
[1764359970836,1.23675226,3054.2,3054.1,3.48128702]
[1764359974311,1.23675226,3054.2,3053.9,3.86]
[1764359974513,1.23675226,3054.2,3053.8,3.27551164]
[1764359974514,0.1674,3054.0,3053.8,3.27551164]
[1764359974753,0.95605226,3053.9,3053.8,3.27551164]
[1764359974913,0.95605226,3053.9,3053.8,3.48251164]
[1764359975244,1.44255226,3053.9,3053.8,3.48251164]
[1764359976242,1.44268318,3053.9,3053.8,3.48251164]
[1764359985118,1.44268318,3053.9,3053.8,3.27551164]
[1764359985320,1.44268318,3053.9,3053.8,3.48251164]
[1764359987055,1.44268318,3053.9,3053.8,0.208]
[1764359987260,1.44268318,3053.9,3053.8,0.001]
[1764359987545,5.18888566,3053.9,3053.8,0.001]
[1764359990163,1.91438421,3053.9,3053.8,0.001]
[1764359990744,5.18888566,3053.9,3053.8,0.001]
[1764359991653,5.19088566,3053.9,3053.8,0.001]
[1764359994158,9.73390566,3053.9,3053.8,0.001]
[1764359995575,4.70438566,3053.9,3053.8,0.001]
[1764359995750,0.76598318,3053.9,3053.8,0.001]
[1764359996654,1.25248318,3053.9,3053.8,0.001]
[1764359999047,0.76598318,3053.9,3053.8,0.001]
[1764359999636,0.30878318,3053.9,3053.8,0.001]
[1764359999829,0.30878318,3053.9,3053.8,0.4615]
[1764360000236,0.76878318,3053.9,3053.8,0.001]
[1764360000437,0.91248318,3053.9,3053.8,0.001]
[1764360000641,1.39898318,3053.9,3053.8,0.001]
[1764360001241,4.67348463,3053.9,3053.8,0.001]
[1764360001439,5.1408162,3053.9,3053.8,0.001]
[1764360002246,5.2408162,3053.9,3053.8,0.001]
[1764360004071,30.9783162,3053.9,3053.8,0.001]
[1764360004366,30.6795782,3053.9,3053.8,0.001]
[1764360004665,7.7618312,3053.9,3053.8,0.001]
[1764360004866,7.8618312,3053.9,3053.8,0.001]
[1764360005065,27.2125602,3053.9,3053.8,0.001]
[1764360005269,26.70076482,3053.9,3053.8,0.001]
[1764360005567,26.3700842,3053.9,3053.8,0.001]
[1764360006260,25.3773452,3053.9,3053.8,0.001]
[1764360007042,5.77849682,3053.9,3053.8,0.001]
[1764360007469,26.72436782,3053.9,3053.8,0.001]
[1764360007663,25.7163972,3053.9,3053.8,0.001]
[1764360007843,16.3650222,3053.9,3053.8,0.001]
[1764360008043,16.4650222,3053.9,3053.8,0.001]
[1764360008360,16.5881342,3053.9,3053.8,0.001]
[1764360008561,16.4881342,3053.9,3053.8,0.001]
[1764360008866,16.5881342,3053.9,3053.8,0.001]
[1764360009470,16.4578102,3053.9,3053.8,0.001]
[1764360009669,16.5578102,3053.9,3053.8,0.001]
[1764360010366,16.2913122,3053.9,3053.8,0.001]
[1764360010538,16.3913122,3053.9,3053.8,0.001]
[1764360011451,19.5600522,3053.9,3053.8,0.001]
[1764360011857,16.2397792,3053.9,3053.8,0.001]
[1764360012054,15.2080452,3053.9,3053.8,0.001]
[1764360012370,15.3735542,3053.9,3053.8,0.001]
[1764360012743,1.13109811,3053.8,3053.4,0.001]
[1764360012945,33.67069536,3053.5,3053.4,0.001]
[1764360013152,34.51515916,3053.5,3053.4,0.001]
[1764360013347,39.36435016,3053.5,3053.4,0.001]
[1764360013638,39.03366954,3053.5,3053.4,0.001]
[1764360013847,36.36659095,3053.5,3053.4,0.001]
[1764360014284,36.69727157,3053.5,3053.4,0.001]
[1764360014591,43.86559957,3053.5,3053.4,0.001]
[1764360015357,13.86559957,3053.5,3053.4,0.001]
[1764360015557,40.61393716,3053.5,3053.4,0.001]
[1764360016683,10.61393716,3053.5,3053.4,0.001]
[1764360017063,40.61393716,3053.5,3053.4,0.001]
[1764360018458,10.61393716,3053.5,3053.4,0.001]
[1764360018782,37.09319516,3053.5,3053.4,0.001]
[1764360018952,39.42978257,3053.5,3053.4,0.001]
[1764360019684,40.62184157,3053.5,3053.4,0.001]
[1764360020572,43.86559957,3053.5,3053.4,0.001]
[1764360020953,41.21953957,3053.5,3053.4,0.001]
[1764360021679,42.41917095,3053.5,3053.4,0.001]
[1764360021872,42.74985157,3053.5,3053.4,0.001]
[1764360022463,43.86559957,3053.5,3053.4,0.001]
[1764360022871,43.99687214,3053.5,3053.4,0.001]
[1764360023476,13.99687214,3053.5,3053.4,0.001]
[1764360023684,40.74520973,3053.5,3053.4,0.001]
[1764360027586,10.74520973,3053.5,3053.4,0.001]
[1764360027759,40.74520973,3053.5,3053.4,0.001]
[1764360027955,41.15071373,3053.5,3053.1,0.001]
[1764360028157,29.93033062,3053.1,3053.0,0.001]
[1764360028374,31.0910138,3053.1,3053.0,0.001]
[1764360028688,30.79271419,3053.1,3053.0,0.001]
[1764360029193,34.06807366,3053.1,3053.0,0.001]
[1764360029490,36.33429153,3053.1,3053.0,0.001]
[1764360029661,37.66973753,3053.1,3053.0,0.001]
[1764360031990,7.66973753,3053.1,3053.0,0.001]
[1764360032188,37.66973753,3053.1,3053.0,0.001]
[1764360032387,38.39533164,3053.1,3053.0,0.001]
[1764360034696,8.39533164,3053.1,3053.0,0.001]
[1764360035004,38.39533164,3053.1,3053.0,0.001]
[1764360035892,30.83618462,3052.9,3052.7,0.001]
[1764360036066,39.91057906,3052.9,3052.7,0.001]
[1764360036264,40.37237906,3052.9,3052.7,0.001]
[1764360036598,40.5036861,3052.9,3052.7,0.001]
[1764360036998,30.83618462,3052.8,3052.7,0.001]
[1764360037170,35.96123347,3052.6,3052.5,0.001]
[1764360037370,36.82531665,3052.6,3052.5,0.001]
[1764360037570,37.38711665,3052.6,3052.5,0.001]
[1764360037776,37.28711665,3052.6,3052.5,0.001]
[1764360038373,37.41843619,3052.6,3052.5,0.001]